bitfinex-derivatives/quotes_BTCF0:USTF0_20250211
["timestamp","ask_amount","ask_price","bid_price","bid_amount"]
[1739314900802,0.2088429,95771.0,95767.0,0.2088503]
[1739314901002,0.2088451,95770.0,95760.0,0.3608]
[1739314901198,0.2088451,95770.0,95764.0,0.2088558]
[1739314901399,0.569637,95774.0,95760.0,0.65283584]
[1739314901611,0.569637,95774.0,95768.0,0.2088473]
[1739314901804,0.569637,95774.0,95768.0,0.2088482]
[1739314902310,0.1589,95791.0,95770.0,0.3608]
[1739314902311,0.3608,95785.0,95770.0,0.3608]
[1739314902507,0.1584,95799.0,95778.0,0.3608]
[1739314902698,0.3608,95811.0,95799.0,0.208781]
[1739314903106,0.2087603,95809.0,95799.0,0.208781]
[1739314903306,0.2087739,95803.0,95799.0,0.208781]
[1739314903503,0.2087774,95801.0,95794.0,0.3608]
[1739314903712,0.3608,95803.0,95794.0,0.3608]
[1739314903912,0.3087801,95800.0,95794.0,0.3608]
[1739314904115,0.1,95800.0,95788.0,0.13592]
[1739314904610,0.1,95800.0,95796.0,0.2087869]
[1739314904806,0.1,95800.0,95795.0,0.3608]
[1739314905005,0.2087869,95797.0,95794.0,0.001]
[1739314905212,0.2087884,95796.0,95794.0,0.001]
[1739314905516,0.2088311,95776.0,95762.0,0.13552]
[1739314905705,0.2088311,95776.0,95761.0,0.5323]
[1739314905907,0.5696311,95776.0,95761.0,0.5323]
[1739314906307,0.5696311,95776.0,95759.0,0.13552]
[1739314906504,0.2088878,95750.0,95749.0,0.1722]
[1739314907311,0.0522084,95775.0,95749.0,0.1722]
[1739314907508,0.3608,95776.0,95743.0,0.1658]
[1739314907509,0.3608,95762.0,95743.0,0.1658]
[1739314907710,0.2088638,95761.0,95752.0,0.00015662]
[1739314907914,0.2088813,95753.0,95752.0,0.00015662]
[1739314908324,0.5696813,95753.0,95752.0,0.00015662]
[1739314909808,0.2088641,95761.0,95752.0,0.20904012]
[1739314910104,0.00015576,95772.0,95752.0,0.00015662]
[1739314910312,0.00015576,95772.0,95771.0,0.3608]
[1739314911109,0.3608,95786.0,95779.0,0.2088229]
[1739314911306,0.3608,95786.0,95771.0,0.36144]
[1739314911506,0.3608,95786.0,95781.0,0.2088192]
[1739314911911,0.2087973,95792.0,95781.0,0.2088192]
[1739314912118,0.2088069,95788.0,95780.0,0.3608]
[1739314912510,0.3608,95795.0,95780.0,0.3608]
[1739314912713,0.3608,95781.0,95772.0,0.00015662]
[1739314913021,0.2088374,95774.0,95772.0,0.00015662]
[1739314913414,0.3608,95773.0,95772.0,0.00015662]
[1739314913619,0.2088374,95774.0,95772.0,0.00015662]
[1739314914013,0.2088374,95774.0,95772.0,0.00115662]
[1739314914423,0.3608,95781.0,95772.0,0.00115662]
[1739314914624,0.3608,95781.0,95772.0,0.00015662]
[1739314914924,0.2088224,95780.0,95772.0,0.00115662]
[1739314915114,0.3608,95788.0,95772.0,0.00115662]
[1739314915316,0.3608,95773.0,95772.0,0.00115662]
[1739314916712,0.20647417,95786.0,95772.0,0.00115662]
[1739314916713,0.15427167,95786.0,95772.0,0.00115662]
[1739314916911,0.15427167,95786.0,95773.0,0.3608]
[1739314917117,0.15427167,95786.0,95779.0,0.2088241]
[1739314917519,0.2088188,95782.0,95772.0,1.50175662]
[1739314917716,0.2088225,95780.0,95773.0,0.5696368]
[1739314917916,0.2088225,95780.0,95775.0,0.2088329]
[1739314918113,0.2088225,95780.0,95773.0,0.3608]
[1739314918114,0.15427167,95786.0,95779.0,0.2088246]
[1739314918321,0.15427167,95786.0,95780.0,0.2088207]
[1739314918526,0.15427167,95786.0,95783.0,0.208814]
[1739314920321,0.3608,95788.0,95783.0,0.208814]
[1739314920527,0.3608,95788.0,95783.0,0.209814]
[1739314920722,0.5696064,95788.0,95783.0,0.209814]
[1739314921528,0.3608,95788.0,95786.0,0.2088082]
[1739314921720,0.15427167,95789.0,95787.0,0.49004]
[1739314921921,0.18291858,95798.0,95794.0,0.2087898]
[1739314922120,0.2088006,95790.0,95789.0,0.12912]
[1739314922420,0.3608,95796.0,95783.0,0.001]
[1739314922725,0.2088377,95773.0,95772.0,2e-08]
[1739314923123,0.5088377,95773.0,95772.0,2e-08]
[1739314923428,0.2088377,95773.0,95772.0,2e-08]
[1739314924129,0.0001566,95782.0,95779.0,0.2088239]
[1739314924429,0.15441024,95791.0,95779.0,0.2088239]
[1739314924430,0.15441024,95791.0,95790.0,0.2088006]
[1739314924624,0.28291858,95800.0,95799.0,0.208781]
[1739314924828,0.2087166,95829.0,95800.0,0.2087771]
[1739314925126,0.2087263,95825.0,95812.0,0.2087514]
[1739314925431,0.3608,95824.0,95803.0,0.2087719]
[1739314925731,0.3608,95816.0,95805.0,0.00015662]
[1739314926033,0.2088356,95774.0,95772.0,0.001]
[1739314926415,0.2088421,95771.0,95770.0,0.00156612]
[1739314926825,0.6608,95771.0,95749.0,0.3608]
[1739314927024,0.3608,95757.0,95738.0,0.3608]
[1739314927229,0.208889,95750.0,95738.0,0.3608]
[1739314927422,0.2088911,95749.0,95738.0,0.3608]
[1739314927627,0.2088911,95749.0,95747.0,0.4341953]
[1739314928225,0.3608,95748.0,95747.0,0.4341953]
[1739314929233,0.3255,95764.0,95747.0,0.6430887]
[1739314929530,0.2088809,95754.0,95747.0,0.4341953]
[1739314929734,0.2088809,95754.0,95747.0,0.4351953]
[1739314930031,0.3608,95758.0,95747.0,0.4351953]
[1739314930534,0.2088806,95754.0,95747.0,0.4351953]
[1739314930725,0.3608,95751.0,95747.0,0.4351953]
[1739314930938,0.3608,95763.0,95747.0,0.4351953]
[1739314931149,0.3608,95763.0,95761.0,0.2088624]
[1739314931346,0.3608,95763.0,95761.0,0.2088619]
[1739314931740,0.3608,95763.0,95757.0,0.1673]
[1739314932052,0.2088617,95762.0,95757.0,0.1673]
[1739314932241,0.2088975,95746.0,95744.0,0.12648]
[1739314932549,0.2088975,95746.0,95739.0,0.16886681]
[1739314932933,0.3608,95760.0,95739.0,0.16886681]
[1739314933136,0.3608,95759.0,95757.0,0.001]
[1739314933334,0.00015662,95770.0,95757.0,0.001]
[1739314933544,0.2088547,95766.0,95757.0,0.001]
[1739314933747,0.20900192,95770.0,95757.0,0.001]
[1739314934051,0.2088487,95768.0,95756.0,0.2088736]
[1739314934347,0.208852,95767.0,95757.0,0.0006]
[1739314934555,0.00015662,95770.0,95766.0,0.5696511]
[1739314934850,0.00015662,95770.0,95768.0,0.2088477]
[1739314935352,0.00015662,95770.0,95766.0,0.3608]
[1739314935353,0.3608,95785.0,95778.0,0.2088257]
[1739314935850,0.3608,95785.0,95780.0,0.2088222]
[1739314936048,0.3608,95795.0,95778.0,0.3608]
[1739314936345,0.3608,95806.0,95790.0,0.3608]
[1739314936847,0.00096001,95813.0,95790.0,0.65283584]
[1739314937152,0.2087479,95815.0,95806.0,0.2087648]
[1739314937448,0.208764,95807.0,95800.0,0.3608]
[1739314937750,0.3608,95802.0,95801.0,0.00015662]
[1739314938250,0.3608,95802.0,95776.0,0.3608]
[1739314938251,0.6608,95802.0,95776.0,0.3608]
[1739314938446,0.2088264,95779.0,95776.0,0.3608]
[1739314938646,0.2088375,95774.0,95767.0,0.5318]
[1739314938843,0.3608,95777.0,95767.0,0.5318]
[1739314939046,0.3608,95797.0,95767.0,0.5318]
[1739314939349,0.2088401,95772.0,95767.0,0.5318]
[1739314939550,0.2088467,95769.0,95767.0,0.3608]
[1739314939743,0.2088639,95761.0,95760.0,0.00015662]
[1739314940047,0.12544,95795.0,95767.0,0.001]
[1739314940447,0.00015662,95770.0,95769.0,0.2088462]
[1739314940652,0.7722,95804.0,95769.0,0.3608]
[1739314940854,0.2087953,95793.0,95779.0,0.3608]
[1739314942048,0.208826,95779.0,95776.0,0.00015662]
[1739314942251,0.208829,95777.0,95776.0,0.00015662]
[1739314943047,0.208829,95777.0,95756.0,0.1244]
[1739314943048,0.2088702,95759.0,95756.0,0.1244]
[1739314943252,0.2088702,95759.0,95748.0,0.3608]
[1739314943253,0.3608,95758.0,95748.0,0.3608]
[1739314943454,0.2088702,95759.0,95748.0,0.3608]
[1739314943847,0.3608,95758.0,95748.0,0.3608]
[1739314944249,0.3608,95758.0,95748.0,0.36095662]
[1739314944446,0.3608,95758.0,95748.0,0.00015662]
[1739314944751,0.20889,95749.0,95748.0,0.00015662]
[1739314944954,0.56969,95749.0,95748.0,0.00015662]
[1739314945352,0.20889,95749.0,95748.0,0.00015662]
[1739314945954,0.3608,95758.0,95748.0,0.00015662]
[1739314946160,0.3608,95758.0,95750.0,0.2088862]
[1739314946462,0.2088726,95757.0,95748.0,0.00115662]
[1739314948050,0.2088726,95757.0,95750.0,0.001]
[1739314948451,0.00015662,95767.0,95752.0,0.2088831]
[1739314948452,0.208854,95766.0,95752.0,0.2088831]
[1739314948752,0.208854,95766.0,95753.0,0.1753]
[1739314949655,0.2088651,95761.0,95753.0,0.1753]
[1739314949959,0.2088651,95761.0,95751.0,0.82172]
[1739314949960,0.2088835,95752.0,95751.0,0.48432]
[1739314950151,0.20889,95749.0,95748.0,0.00115662]
[1739314950860,0.56969,95749.0,95748.0,0.00015662]
[1739314951554,0.6608,95749.0,95739.0,0.00156681]
[1739314951751,0.5697097,95740.0,95739.0,0.00156681]
[1739314952554,0.3608,95740.0,95711.0,0.7061994]
[1739314952753,0.2089511,95721.0,95711.0,0.5846794]
[1739314953158,0.2089511,95721.0,95711.0,0.58483611]
[1739314954152,0.2089708,95712.0,95711.0,1e-08]
[1739314954358,0.2089904,95703.0,95702.0,0.29052434]
[1739314954556,0.5697904,95703.0,95702.0,0.29052434]
[1739314954759,0.8697904,95703.0,95702.0,0.29052434]
[1739314954961,0.3608,95703.0,95702.0,0.29052434]
[1739314955255,0.5697904,95703.0,95702.0,0.29052434]
[1739314955855,0.5697904,95703.0,95700.0,0.1]
[1739314955856,0.3608,95703.0,95700.0,0.1]
[1739314956156,0.2089948,95701.0,95700.0,0.1]
[1739314956351,0.6608,95703.0,95677.0,0.00156786]
[1739314956556,0.3608,95678.0,95669.0,0.27072376]
[1739314956755,0.5698625,95670.0,95669.0,0.27072376]
[1739314957464,0.3608,95670.0,95669.0,0.27072376]
[1739314958361,0.3698,95670.0,95669.0,0.27172376]
[1739314958664,0.009,95670.0,95669.0,0.27172376]
[1739314959059,0.00015679,95679.0,95676.0,0.2090476]
[1739314959465,0.00015679,95679.0,95677.0,1.7090464]
[1739314961364,0.3608,95690.0,95689.0,0.209021]
[1739314961761,0.3608,95690.0,95689.0,0.2090209]
[1739314962769,0.007,95690.0,95681.0,0.3608]
[1739314962956,0.3608,95698.0,95681.0,0.3608]
[1739314963160,0.3608,95698.0,95693.0,0.2090113]
[1739314963462,0.3608,95698.0,95694.0,0.1764]
[1739314963664,0.3608,95698.0,95697.0,0.2090035]
[1739314963970,0.2101093,95722.0,95699.0,0.2089981]
[1739314964156,0.2089493,95722.0,95710.0,0.2089747]
[1739314964363,0.2089493,95722.0,95702.0,0.3608]
[1739314964562,0.2089493,95722.0,95703.0,0.1824]
[1739314964757,0.3608,95727.0,95705.0,0.2089852]
[1739314964962,0.2089416,95726.0,95703.0,0.1824]
[1739314965163,0.20909839,95726.0,95706.0,0.00015679]
[1739314965361,0.2089614,95717.0,95706.0,0.00015679]
[1739314965571,0.2089817,95707.0,95706.0,0.00015679]
[1739314965865,0.5697817,95707.0,95706.0,0.00015679]
[1739314968457,0.5697817,95707.0,95706.0,0.00115679]
[1739314969262,0.3608,95717.0,95706.0,0.00115679]
[1739314969470,0.3608,95722.0,95721.0,0.2089511]
[1739314969665,0.2089627,95716.0,95713.0,0.2089677]
[1739314969863,0.3608,95714.0,95713.0,0.2089677]
[1739314970064,0.3608,95714.0,95706.0,0.00115679]
[1739314970065,0.2089805,95708.0,95706.0,0.00115679]
[1739314970361,0.2089805,95708.0,95706.0,0.00015679]
[1739314970559,0.2089805,95708.0,95706.0,0.00115679]
[1739314971171,0.3,95708.0,95665.0,0.3608]
[1739314971470,0.9306319,95684.0,95677.0,0.2090472]
[1739314971766,0.3608,95684.0,95670.0,0.29203584]
[1739314971971,0.3608,95703.0,95682.0,0.11784]
[1739314972167,0.3608,95702.0,95680.0,0.46023584]
[1739314972363,0.0001567,95703.0,95684.0,0.11772]
[1739314972678,0.3608,95693.0,95684.0,0.11772]
[1739314973066,0.0001567,95703.0,95702.0,0.2089926]
[1739314974670,0.3608,95713.0,95712.0,0.2089708]
[1739314975769,0.3608,95713.0,95695.0,0.3608]
[1739314975968,0.3608,95713.0,95703.0,0.0001567]
[1739314976166,0.3608,95704.0,95703.0,0.0001567]
[1739314977271,0.2089736,95711.0,95703.0,0.0001567]
[1739314977676,0.3608,95714.0,95710.0,0.2089738]
[1739314977873,0.3608,95714.0,95711.0,0.1776]
[1739314978276,0.0001567,95722.0,95715.0,0.2089623]
[1739314978578,0.0001567,95722.0,95712.0,0.3332]
[1739314978579,0.0001567,95722.0,95716.0,0.208961]
[1739314979166,0.15320782,95742.0,95718.0,0.3608]
[1739314979371,0.15320782,95742.0,95741.0,0.2089075]
[1739314980075,0.18497502,95749.0,95748.0,0.2088922]
[1739314980671,0.18497502,95749.0,95670.0,0.29203584]
[1739314980672,0.3608,95738.0,95670.0,0.29203584]
[1739314980873,0.3608,95709.0,95687.0,0.173]
[1739314981173,0.3608,95688.0,95687.0,0.173]
[1739314982078,0.3608,95688.0,95683.0,0.11544]
[1739314982571,0.3608,95688.0,95680.0,0.3740691]
[1739314984880,0.0001567,95697.0,95696.0,0.2090057]
[1739314985273,0.0001567,95697.0,95696.0,0.3233657]
[1739314985473,0.0001567,95697.0,95696.0,0.11436]
[1739314988081,0.3608,95702.0,95696.0,0.11436]
[1739314988384,0.3608,95713.0,95699.0,0.3608]
[1739314988583,0.3608,95733.0,95720.0,0.2089533]
[1739314989583,0.0001567,95730.0,95718.0,0.11376]
[1739314991174,0.0001567,95730.0,95726.0,0.20894]
[1739314991374,0.5697351,95729.0,95713.0,0.11344]
[1739314991578,0.3608,95718.0,95713.0,0.11344]
[1739314991777,0.3608,95718.0,95716.0,0.2089609]
[1739314991972,0.3608,95729.0,95716.0,0.2089609]
[1739314992383,0.3608,95729.0,95727.0,0.2089364]
[1739314992975,0.3608,95729.0,95720.0,0.3608]
[1739314993784,0.3608,95729.0,95727.0,0.2089366]
[1739314995486,0.3608,95729.0,95720.0,0.3608]
[1739314996180,0.3608,95721.0,95715.0,0.2089633]
[1739314996490,0.3608,95729.0,95728.0,0.2089359]
[1739314997889,0.3608,95729.0,95717.0,0.2089596]
[1739314998586,0.3608,95729.0,95724.0,0.2089443]
[1739314999280,0.3608,95729.0,95718.0,0.11136]
[1739314999483,0.3608,95729.0,95728.0,0.001]
[1739315000082,0.3608,95729.0,95727.0,0.2089368]
[1739315002288,0.0001567,95730.0,95729.0,0.2089339]
[1739315002592,0.3608,95746.0,95745.0,0.208899]
[1739315003490,0.3608,95754.0,95753.0,0.2088815]
[1739315003690,0.18497502,95762.0,95741.0,0.11008]
[1739315003691,0.00015668,95755.0,95741.0,0.11008]
[1739315003892,0.3608,95751.0,95742.0,0.01380969]
[1739315004090,0.00015668,95755.0,95741.0,0.11008]
[1739315004291,0.3608,95750.0,95742.0,0.2089046]
[1739315004490,0.00015668,95755.0,95741.0,0.11008]
[1739315004686,0.00015668,95755.0,95753.0,0.2088797]
[1739315005100,0.00015668,95755.0,95754.0,0.01369731]
[1739315005298,0.00015668,95755.0,95753.0,0.2088797]
[1739315006397,0.00015668,95755.0,95754.0,0.0136208]
[1739315007196,0.00015668,95755.0,95753.0,0.2098797]
[1739315007397,0.00015668,95755.0,95753.0,0.11036]
[1739315008499,0.00015668,95755.0,95743.0,0.2089015]
[1739315008704,0.20891,95740.0,95739.0,0.1447429]
[1739315009000,0.3608,95744.0,95721.0,0.31228512]
[1739315009200,0.3608,95722.0,95721.0,0.31228512]
[1739315010392,0.0001567,95731.0,95728.0,0.2089357]
[1739315010896,0.0001567,95731.0,95721.0,0.52123592]
[1739315011104,0.3608,95722.0,95721.0,0.31228512]
[1739315012289,0.5697493,95722.0,95721.0,0.31228512]
[1739315012489,0.3608,95722.0,95721.0,0.31228512]
[1739315012697,0.3608,95722.0,95712.0,0.0001567]
[1739315015003,0.0001567,95731.0,95730.0,0.2089318]
[1739315015205,0.0001567,95731.0,95730.0,0.5697318]
[1739315016704,0.2089689,95713.0,95712.0,0.0001567]
[1739315017006,0.7216,95713.0,95682.0,0.1781]
[1739315017199,0.3608,95683.0,95682.0,0.3871366]
[1739315017600,0.3608,95683.0,95682.0,1.8871366]
[1739315017799,0.3608,95683.0,95682.0,0.3871366]
[1739315017999,0.3608,95683.0,95682.0,0.1781]
[1739315019405,0.3608,95683.0,95682.0,0.1911]
[1739315025511,0.3608,95683.0,95682.0,0.013]
[1739315026301,0.5698345,95683.0,95682.0,0.013]
[1739315026705,0.3608,95683.0,95673.0,0.0001567]
[1739315026913,0.3608,95674.0,95640.0,0.13554855]
[1739315027107,0.3608,95663.0,95644.0,0.1916]
[1739315027312,0.3608,95646.0,95645.0,0.2091163]
[1739315027499,0.3608,95646.0,95644.0,0.1916]
[1739315029399,0.5699171,95646.0,95644.0,0.1916]
[1739315029900,0.3608,95646.0,95635.0,0.24974834]
[1739315030098,0.3608,95636.0,95635.0,0.24974834]
[1739315031412,0.3608,95636.0,95635.0,0.25074834]
[1739315032002,0.3618,95636.0,95635.0,0.24974834]
[1739315033000,0.6618,95636.0,95619.0,0.3740691]
[1739315033200,0.209206,95605.0,95601.0,0.45849035]
[1739315033514,0.3608,95604.0,95603.0,0.39336707]
[1739315034310,0.00015687,95613.0,95604.0,0.2092072]
[1739315034514,0.00015687,95613.0,95602.0,0.3608]
[1739315034714,0.00015687,95613.0,95610.0,0.2091933]
[1739315035106,0.00015687,95613.0,95611.0,0.2091907]
[1739315037108,0.00015687,95613.0,95612.0,1.5]
[1739315037609,0.00015687,95613.0,95612.0,1.862]
[1739315038710,0.00015687,95613.0,95612.0,1.863]
[1739315040419,0.36095687,95613.0,95612.0,0.001]
[1739315040611,0.2091901,95612.0,95600.0,0.20364]
[1739315040807,0.3608,95605.0,95600.0,0.20364]
[1739315041616,0.3608,95605.0,95601.0,0.4003121]
[1739315041815,0.3608,95605.0,95601.0,0.1911]
[1739315042211,0.3608,95605.0,95600.0,0.1]
[1739315043316,0.2092085,95604.0,95600.0,0.1]
[1739315044523,0.3608,95605.0,95600.0,0.1]
[1739315045321,0.3608,95605.0,95603.0,0.2092091]
[1739315046327,0.00015687,95613.0,95612.0,0.2091897]
[1739315047626,0.00015687,95613.0,95612.0,0.5633897]
[1739315048418,0.00015687,95613.0,95612.0,0.1775]
[1739315049422,0.36095687,95613.0,95612.0,0.1775]
[1739315050824,0.00015687,95613.0,95612.0,0.1775]
[1739315051218,0.3608,95623.0,95622.0,0.2091678]
[1739315052318,0.3608,95623.0,95616.0,0.2091806]
[1739315052518,0.3608,95623.0,95612.0,0.1775]
[1739315052721,0.2091802,95617.0,95612.0,0.1775]
[1739315052921,0.3608,95613.0,95612.0,0.1775]
[1739315053126,0.3608,95613.0,95612.0,0.001]
[1739315053630,0.3608,95613.0,95600.0,0.1]
[1739315053815,0.3608,95601.0,95600.0,0.1]
[1739315054419,0.00015687,95610.0,95609.0,0.2091963]
[1739315054821,0.3608,95622.0,95621.0,0.2091701]
[1739315055228,0.3608,95653.0,95621.0,0.463]
[1739315055528,0.3608,95632.0,95630.0,0.2091485]
[1739315055731,0.3608,95632.0,95621.0,0.463]
[1739315056023,0.3608,95632.0,95630.0,0.2091485]
[1739315056228,0.1540554,95627.0,95621.0,0.463]
[1739315056419,0.18497502,95635.0,95621.0,0.463]
[1739315056731,0.18497502,95635.0,95634.0,0.2091416]
[1739315057320,0.18497502,95635.0,95633.0,0.10192]
[1739315057927,0.18497502,95635.0,95631.0,0.10188]
[1739315058420,0.18497502,95635.0,95633.0,0.001]
[1739315058615,0.18497502,95635.0,95633.0,0.2101437]
[1739315058815,0.00015687,95636.0,95635.0,0.2091395]
[1739315059020,0.18497502,95650.0,95634.0,0.1802]
[1739315059222,0.18497502,95650.0,95646.0,0.2091148]
[1739315059423,0.18497502,95650.0,95648.0,0.2091099]
[1739315060129,0.2147371,95666.0,95647.0,0.10164]
[1739315060331,0.00015687,95659.0,95650.0,0.18909464]
[1739315060518,0.00015687,95659.0,95658.0,0.2090892]
[1739315061824,0.00015687,95659.0,95658.0,0.2100892]
[1739315062730,0.00015687,95659.0,95658.0,0.10212]
[1739315063031,0.00015687,95659.0,95658.0,0.001]
[1739315063223,0.00015687,95659.0,95641.0,0.73016]
[1739315063224,0.2090926,95657.0,95647.0,0.10092]
[1739315063425,0.3608,95648.0,95647.0,0.10092]
[1739315063920,0.3608,95648.0,95633.0,0.10168]
[1739315064129,0.3608,95640.0,95633.0,0.10168]
[1739315064334,0.3608,95640.0,95620.0,0.54989464]
[1739315064627,0.3608,95640.0,95584.0,0.3506]
[1739315064628,0.0522829,95639.0,95600.0,0.1]
[1739315064831,0.3608,95601.0,95600.0,0.1]
[1739315065637,0.00015687,95610.0,95600.0,0.1]
[1739315065834,0.3608,95601.0,95600.0,0.1]
[1739315067133,0.00015687,95610.0,95600.0,0.1]
[1739315067633,0.00015687,95610.0,95600.0,0.101]
[1739315067634,0.2091963,95609.0,95600.0,0.101]
[1739315068036,0.3608,95602.0,95600.0,0.101]
[1739315071438,0.209207,95605.0,95600.0,0.101]
[1739315071439,0.3608,95601.0,95600.0,0.101]
[1739315072637,0.3608,95601.0,95600.0,0.1]
[1739315072834,0.209207,95605.0,95600.0,0.101]
[1739315074740,0.00015687,95610.0,95607.0,0.2091999]
[1739315074926,0.00015687,95610.0,95608.0,0.3631]
[1739315076143,0.00015687,95610.0,95608.0,0.5722971]
[1739315076939,0.00015687,95610.0,95608.0,0.5732971]
[1739315080243,0.00015687,95610.0,95609.0,0.09884]
[1739315080439,0.00015687,95610.0,95608.0,0.5732971]
[1739315080739,0.00015687,95610.0,95608.0,0.001]
[1739315080945,0.20935137,95610.0,95608.0,0.001]
[1739315082237,0.20935137,95610.0,95609.0,0.001]
[1739315082940,0.20935137,95610.0,95604.0,0.2092065]
[1739315083143,0.20935137,95610.0,95600.0,0.19892]
[1739315083144,0.00015687,95610.0,95608.0,0.001]
[1739315083342,0.00015687,95610.0,95608.0,0.2101973]
[1739315083748,0.00015687,95610.0,95609.0,0.001]
[1739315086039,0.00015687,95610.0,95608.0,0.001]
[1739315086242,0.00015687,95610.0,95609.0,0.2091963]
[1739315086747,0.00015687,95610.0,95609.0,0.2101963]
[1739315087733,0.36095687,95610.0,95609.0,0.2101963]
[1739315088650,0.00015687,95610.0,95609.0,0.2101963]
[1739315089247,0.20935107,95610.0,95609.0,0.001]
[1739315092346,0.2092138,95601.0,95600.0,0.1]
[1739315092648,0.5700138,95601.0,95600.0,0.1]
[1739315093145,0.3608,95601.0,95600.0,0.1]
[1739315093552,0.3608,95601.0,95600.0,0.101]
[1739315095345,0.00015687,95610.0,95601.0,0.2092138]
[1739315095550,0.20935137,95610.0,95605.0,0.2092034]
[1739315096045,0.209199,95608.0,95605.0,0.2092034]
[1739315096752,0.00015687,95610.0,95605.0,0.2092034]
[1739315096950,0.2092012,95607.0,95605.0,0.2092034]
[1739315097353,0.2092012,95607.0,95605.0,0.2102034]
[1739315098654,0.2092012,95607.0,95605.0,0.2092034]
[1739315098954,0.2092012,95607.0,95605.0,0.2102034]
[1739315101156,0.2092012,95607.0,95605.0,0.001]
[1739315102658,0.3608,95606.0,95605.0,0.001]
[1739315103255,0.75704,95606.0,95581.0,0.1792]
[1739315103454,0.2092576,95581.0,95575.0,0.3612]
[1739315103761,0.5700576,95581.0,95575.0,0.3612]
[1739315103949,0.5700576,95581.0,95561.0,0.1792]
[1739315104151,0.5700576,95581.0,95562.0,0.1892]
[1739315104352,0.5700576,95581.0,95562.0,0.19964868]
[1739315104560,0.3608,95592.0,95581.0,0.2092572]
[1739315104863,0.00015687,95590.0,95589.0,0.2092397]
[1739315106159,0.3608,95612.0,95589.0,0.3608]
[1739315106350,0.3608,95612.0,95605.0,0.2092045]
[1739315106555,0.3608,95612.0,95607.0,0.2092005]
[1739315106963,0.3608,95612.0,95602.0,0.12615043]
[1739315107177,0.3608,95612.0,95611.0,0.209192]
[1739315107455,0.3608,95612.0,95602.0,0.12615043]
[1739315107662,0.2091998,95608.0,95600.0,0.09608]
[1739315107961,0.3608,95612.0,95604.0,0.2092057]
[1739315108162,0.3628,95612.0,95611.0,0.209192]
[1739315109262,0.3608,95612.0,95611.0,0.209192]
[1739315111066,0.3718,95612.0,95611.0,0.210192]
[1739315111761,0.3718,95612.0,95611.0,0.001]
[1739315113571,0.011,95612.0,95611.0,0.001]
[1739315113957,0.3608,95613.0,95611.0,0.001]
[1739315114362,0.3608,95612.0,95611.0,0.210192]
[1739315114674,0.3608,95612.0,95611.0,0.209192]
[1739315114968,0.3718,95612.0,95611.0,0.210192]
[1739315115473,0.00015687,95617.0,95616.0,0.209181]
[1739315117366,0.00015687,95617.0,95616.0,0.210181]
[1739315117367,0.01115687,95617.0,95616.0,0.210181]
[1739315118266,0.3608,95633.0,95616.0,0.210181]
[1739315118267,0.00112001,95651.0,95616.0,0.31170509]
[1739315118569,0.2091075,95650.0,95643.0,0.2091213]
[1739315119471,0.2091321,95639.0,95637.0,0.00015687]
[1739315119670,0.3608,95638.0,95637.0,0.00015687]
[1739315121277,0.001,95638.0,95637.0,0.00115687]
[1739315127685,0.01163725,95638.0,95617.0,0.09368]
[1739315127976,0.3608,95621.0,95612.0,0.00056]
[1739315128283,0.2091927,95611.0,95600.0,0.12609013]
[1739315128479,0.2091927,95611.0,95603.0,0.2092085]
[1739315128982,0.3608,95613.0,95603.0,0.2092085]
[1739315129188,0.2091957,95610.0,95603.0,0.2092085]
[1739315129481,0.3608,95613.0,95601.0,0.2092132]
[1739315129691,0.3608,95613.0,95603.0,0.3608]
[1739315129985,0.3608,95613.0,95612.0,0.2101898]
[1739315130379,0.00015687,95617.0,95616.0,0.209181]
[1739315130980,0.00015687,95617.0,95616.0,0.302261]
[1739315131483,0.2091473,95632.0,95618.0,0.2091753]
[1739315131682,0.2091473,95632.0,95625.0,0.12609013]
[1739315131878,0.2091473,95632.0,95629.0,0.2091523]
[1739315132585,0.2091536,95629.0,95626.0,0.1819]
[1739315132786,0.3608,95635.0,95626.0,0.1819]
[1739315132982,0.5699402,95635.0,95630.0,0.2091494]
[1739315133581,0.209143,95634.0,95630.0,0.2091494]
[1739315134678,0.209143,95634.0,95630.0,0.2101494]
[1739315134878,0.3638,95635.0,95630.0,0.2101494]
[1739315135085,0.2091468,95632.0,95630.0,0.2101494]
[1739315135582,0.2091468,95632.0,95630.0,0.001]
[1739315136180,0.2091679,95622.0,95621.0,0.00015687]
[1739315136382,0.5699679,95622.0,95621.0,0.00015687]
[1739315137782,0.5719679,95622.0,95621.0,0.00115687]
[1739315139783,0.5699679,95622.0,95621.0,0.00015687]
[1739315139988,0.5719679,95622.0,95621.0,0.00115687]
[1739315140786,0.2111679,95622.0,95621.0,0.00115687]
[1739315141092,0.002,95622.0,95621.0,0.00115687]
[1739315141384,0.3608,95634.0,95621.0,0.00115687]
[1739315141385,0.3608,95634.0,95621.0,0.47827687]
[1739315141576,0.3608,95634.0,95632.0,0.209145]
[1739315141782,0.3608,95634.0,95633.0,0.1852]
[1739315141981,0.3608,95643.0,95633.0,0.1852]
[1739315142187,0.3608,95643.0,95642.0,0.2091242]
[1739315143985,0.2091155,95646.0,95644.0,0.2091183]
[1739315144784,0.00015665,95652.0,95650.0,0.209106]
[1739315145191,0.00015665,95652.0,95644.0,0.2091187]
[1739315145387,0.00015665,95652.0,95650.0,0.209106]
[1739315146287,0.20925925,95652.0,95650.0,0.209106]
[1739315146890,0.20925925,95652.0,95650.0,0.210106]
[1739315147887,0.00015665,95652.0,95650.0,0.001]
[1739315148092,0.2091044,95651.0,95650.0,0.001]
[1739315148489,0.00015665,95652.0,95650.0,0.001]
[1739315148699,0.00015665,95652.0,95651.0,0.6007044]
[1739315150095,0.20909,95658.0,95657.0,0.2090913]
[1739315152893,0.20909,95658.0,95657.0,0.2100913]
[1739315153796,0.3608,95675.0,95657.0,0.001]
[1739315154097,0.2090551,95674.0,95671.0,0.2090598]
[1739315154795,0.2090619,95671.0,95667.0,0.3608]
[1739315154998,0.2090619,95671.0,95665.0,0.12609013]
[1739315155193,0.2090727,95666.0,95664.0,0.08948]
[1739315155989,0.2090615,95671.0,95664.0,0.08948]
[1739315156198,0.2090634,95670.0,95664.0,0.09048]
[1739315158302,0.2090655,95669.0,95664.0,0.09048]
[1739315159403,0.2090655,95669.0,95664.0,0.08948]
[1739315159705,0.2090655,95669.0,95664.0,0.09048]